[Event "*** Titled Tuesday Blitz"]
[Site "Chess.com"]
[Date "2021.03.09"]
[Round "4"]
[White "vugarrasulov"]
[Black "FMJoseHerrera"]
[Result "1-0"]
[WhiteElo "2860"]
[BlackElo "2525"]
[TimeControl "180+1"]
[EndTime "10:41:54 PST"]
[Termination "vugarrasulov won on time"]

1. d4 {[%clk 0:03:00.9]} 1... Nf6 {[%clk 0:02:51.4]} 2. c4 {[%clk 0:03:01.4]}
2... c5 {[%clk 0:02:50.3]} 3. d5 {[%clk 0:03:01.1]} 3... b5 {[%clk 0:02:50.5]}
4. Nf3 {[%clk 0:02:54.8]} 4... g6 {[%clk 0:02:49.7]} 5. Qc2 {[%clk 0:02:51.5]}
5... Bg7 {[%clk 0:02:49.3]} 6. e4 {[%clk 0:02:51.8]} 6... O-O {[%clk 0:02:48.7]}
7. cxb5 {[%clk 0:02:42.6]} 7... a6 {[%clk 0:02:48.5]} 8. bxa6 {[%clk 0:02:42.9]}
8... Bxa6 {[%clk 0:02:44.9]} 9. Nc3 {[%clk 0:02:43.1]} 9... Qa5 {[%clk
0:02:44.4]} 10. Bxa6 {[%clk 0:02:33.2]} 10... Qxa6 {[%clk 0:02:35]} 11. e5
{[%clk 0:02:27]} 11... Ne8 {[%clk 0:02:18.4]} 12. h4 {[%clk 0:02:22.4]} 12... e6
{[%clk 0:02:06.5]} 13. h5 {[%clk 0:02:17.7]} 13... Nc7 {[%clk 0:01:41]} 14. hxg6
{[%clk 0:02:08.2]} 14... fxg6 {[%clk 0:01:40.3]} 15. d6 {[%clk 0:02:06.3]} 15...
Nb5 {[%clk 0:01:34.2]} 16. Bh6 {[%clk 0:01:33.6]} 16... Nd4 {[%clk 0:01:17]} 17.
Nxd4 {[%clk 0:01:29.9]} 17... cxd4 {[%clk 0:01:17.9]} 18. Bxg7 {[%clk
0:01:30.3]} 18... Kxg7 {[%clk 0:01:18.1]} 19. Qd2 {[%clk 0:01:05.1]} 19... h5
{[%clk 0:01:09.7]} 20. Qxd4 {[%clk 0:01:02.9]} 20... Nc6 {[%clk 0:01:09.7]} 21.
Qe4 {[%clk 0:01:00.9]} 21... Rf5 {[%clk 0:01:07.5]} 22. f4 {[%clk 0:00:57.9]}
22... Rb8 {[%clk 0:01:02.2]} 23. O-O-O {[%clk 0:00:54.4]} 23... Rb4 {[%clk
0:01:01.5]} 24. Qe2 {[%clk 0:00:49.9]} 24... Rc4 {[%clk 0:00:31.9]} 25. Kb1
{[%clk 0:00:43.9]} 25... Rfxf4 {[%clk 0:00:29.1]} 26. Rhf1 {[%clk 0:00:43.6]}
26... Qb6 {[%clk 0:00:24.4]} 27. Rxf4 {[%clk 0:00:20.8]} 27... Rxf4 {[%clk
0:00:25.3]} 28. Ne4 {[%clk 0:00:17.8]} 28... Nxe5 {[%clk 0:00:22.3]} 29. g3
{[%clk 0:00:18.2]} 29... Rf3 {[%clk 0:00:19.2]} 30. Ng5 {[%clk 0:00:17.1]} 30...
Re3 {[%clk 0:00:18.7]} 31. Qc2 {[%clk 0:00:17.6]} 31... Rxg3 {[%clk 0:00:14.7]}
32. Nxe6+ {[%clk 0:00:17.1]} 32... dxe6 {[%clk 0:00:14.1]} 33. Qc7+ {[%clk
0:00:17.4]} 33... Nd7 {[%clk 0:00:11]} 34. Qxd7+ {[%clk 0:00:17.8]} 34... Kh6
{[%clk 0:00:11.5]} 35. Qxe6 {[%clk 0:00:14.4]} 35... Rg2 {[%clk 0:00:11.9]} 36.
Qb3 {[%clk 0:00:15]} 36... Qd8 {[%clk 0:00:11.2]} 37. d7 {[%clk 0:00:14.9]}
37... h4 {[%clk 0:00:11.7]} 38. Qe3+ {[%clk 0:00:15]} 38... Rg5 {[%clk
0:00:08.4]} 39. Qe8 {[%clk 0:00:14.5]} 1-0

[Event "*** Titled Tuesday Blitz"]
[Site "Chess.com"]
[Date "2021.03.09"]
[Round "4"]
[White "BigAl"]
[Black "attack2mateU"]
[Result "0-1"]
[WhiteElo "2508"]
[BlackElo "2735"]
[TimeControl "180+1"]
[EndTime "10:41:55 PST"]
[Termination "attack2mateU won on time"]

1. Nf3 {[%clk 0:03:00.9]} 1... c5 {[%clk 0:02:59.8]} 2. g3 {[%clk 0:03:00.9]}
2... Nc6 {[%clk 0:03:00.4]} 3. Bg2 {[%clk 0:03:01.6]} 3... e5 {[%clk 0:03:01]}
4. O-O {[%clk 0:03:02.2]} 4... d5 {[%clk 0:03:01.5]} 5. d3 {[%clk 0:03:02.6]}
5... Nf6 {[%clk 0:03:01.2]} 6. Bg5 {[%clk 0:02:57.6]} 6... Be7 {[%clk
0:02:58.6]} 7. Nbd2 {[%clk 0:02:52.7]} 7... Be6 {[%clk 0:02:54.4]} 8. e4 {[%clk
0:02:52.9]} 8... d4 {[%clk 0:02:54.3]} 9. a4 {[%clk 0:02:52.8]} 9... Nd7 {[%clk
0:02:49.5]} 10. Bxe7 {[%clk 0:02:52.7]} 10... Qxe7 {[%clk 0:02:50.4]} 11. Nh4
{[%clk 0:02:53]} 11... g6 {[%clk 0:02:40.9]} 12. b3 {[%clk 0:02:52.6]} 12... h5
{[%clk 0:02:20.7]} 13. Nc4 {[%clk 0:02:42.1]} 13... Nb6 {[%clk 0:02:09.1]} 14.
a5 {[%clk 0:02:14.7]} 14... Nxc4 {[%clk 0:02:08.9]} 15. bxc4 {[%clk 0:02:15.1]}
15... O-O {[%clk 0:02:03.6]} 16. Qd2 {[%clk 0:02:14]} 16... Kg7 {[%clk
0:02:02.5]} 17. Rab1 {[%clk 0:01:59.4]} 17... Rab8 {[%clk 0:02:00.6]} 18. f4
{[%clk 0:01:56.4]} 18... exf4 {[%clk 0:02:00.4]} 19. Rxf4 {[%clk 0:01:55]} 19...
Ne5 {[%clk 0:01:59.3]} 20. c3 {[%clk 0:01:43.9]} 20... Rfd8 {[%clk 0:01:56.7]}
21. Nf3 {[%clk 0:01:37.3]} 21... Nxf3+ {[%clk 0:01:46.2]} 22. Rxf3 {[%clk
0:01:37]} 22... Qd6 {[%clk 0:01:44.5]} 23. Kh1 {[%clk 0:01:31]} 23... b6 {[%clk
0:01:40.5]} 24. cxd4 {[%clk 0:01:25.7]} 24... Qxd4 {[%clk 0:01:39.8]} 25. Qg5
{[%clk 0:01:14.4]} 25... bxa5 {[%clk 0:01:35.4]} 26. Rbf1 {[%clk 0:01:13.1]}
26... a4 {[%clk 0:01:25.9]} 27. Bh3 {[%clk 0:01:01.7]} 27... Rb1 {[%clk
0:00:19.3]} 28. Bxe6 {[%clk 0:00:30.2]} 28... Rxf1+ {[%clk 0:00:18.6]} 29. Rxf1
{[%clk 0:00:30.4]} 29... fxe6 {[%clk 0:00:19.2]} 30. Qe7+ {[%clk 0:00:30.7]}
30... Kh6 {[%clk 0:00:19.2]} 31. h4 {[%clk 0:00:19.8]} 31... Rd7 {[%clk
0:00:15.6]} 32. Qg5+ {[%clk 0:00:17.1]} 32... Kg7 {[%clk 0:00:14.9]} 33. Qf4
{[%clk 0:00:14.2]} 33... Qd6 {[%clk 0:00:12.2]} 34. Qf6+ {[%clk 0:00:13.1]}
34... Kh7 {[%clk 0:00:12.7]} 35. g4 {[%clk 0:00:07.6]} 35... Qxd3 {[%clk
0:00:09.8]} 36. gxh5 {[%clk 0:00:04]} 36... Qxe4+ {[%clk 0:00:09.9]} 37. Kh2
{[%clk 0:00:02.9]} 37... Rd2+ {[%clk 0:00:09.4]} 38. Rf2 {[%clk 0:00:02.2]}
38... Rxf2+ {[%clk 0:00:08.2]} 39. Qxf2 {[%clk 0:00:02.2]} 39... Qe5+ {[%clk
0:00:07.1]} 0-1

[Event "*** Titled Tuesday Blitz"]
[Site "Chess.com"]
[Date "2021.03.09"]
[Round "4"]
[White "Guzman70"]
[Black "Treacherous_horse64"]
[Result "1/2-1/2"]
[WhiteElo "2337"]
[BlackElo "2533"]
[TimeControl "180+1"]
[EndTime "10:41:56 PST"]
[Termination "Game drawn by repetition"]

1. e4 {[%clk 0:03:00.9]} 1... c6 {[%clk 0:02:45.7]} 2. c4 {[%clk 0:02:59.1]}
2... d5 {[%clk 0:02:44.8]} 3. exd5 {[%clk 0:03:00]} 3... cxd5 {[%clk 0:02:45.7]}
4. cxd5 {[%clk 0:03:00]} 4... Qxd5 {[%clk 0:02:46]} 5. Nc3 {[%clk 0:02:59.5]}
5... Qd8 {[%clk 0:02:46.5]} 6. d4 {[%clk 0:02:57.5]} 6... Nf6 {[%clk 0:02:46.5]}
7. Nf3 {[%clk 0:02:57.6]} 7... e6 {[%clk 0:02:46.3]} 8. Bg5 {[%clk 0:02:48.6]}
8... Be7 {[%clk 0:02:46.3]} 9. Bd3 {[%clk 0:02:48.1]} 9... Nbd7 {[%clk
0:02:45.2]} 10. O-O {[%clk 0:02:47.2]} 10... O-O {[%clk 0:02:44.2]} 11. Qe2
{[%clk 0:02:43.1]} 11... Re8 {[%clk 0:02:44]} 12. Rad1 {[%clk 0:02:40.4]} 12...
Nf8 {[%clk 0:02:43.7]} 13. Ne5 {[%clk 0:02:31.2]} 13... Ng6 {[%clk 0:02:40.2]}
14. Nxg6 {[%clk 0:02:29.5]} 14... hxg6 {[%clk 0:02:41.1]} 15. Rfe1 {[%clk
0:02:25.2]} 15... b6 {[%clk 0:02:40.8]} 16. Qf3 {[%clk 0:02:19.2]} 16... Rb8
{[%clk 0:02:16.9]} 17. h4 {[%clk 0:02:01.1]} 17... Bb7 {[%clk 0:02:16.6]} 18.
Qh3 {[%clk 0:01:59.2]} 18... Nd5 {[%clk 0:02:09.2]} 19. Ne4 {[%clk 0:01:50.1]}
19... Bxg5 {[%clk 0:01:59.8]} 20. hxg5 {[%clk 0:01:33.1]} 20... Nf4 {[%clk
0:01:58.2]} 21. Qg4 {[%clk 0:01:18.3]} 21... Nxd3 {[%clk 0:01:43.1]} 22. Rxd3
{[%clk 0:01:19.2]} 22... e5 {[%clk 0:01:16.3]} 23. d5 {[%clk 0:01:13.2]} 23...
Bxd5 {[%clk 0:00:40.4]} 24. Red1 {[%clk 0:01:11.5]} 24... Be6 {[%clk 0:00:40.4]}
25. Qh4 {[%clk 0:01:09.1]} 25... Qe7 {[%clk 0:00:34.2]} 26. b3 {[%clk
0:00:48.1]} 26... Red8 {[%clk 0:00:34.2]} 27. Qg3 {[%clk 0:00:35]} 27... Rxd3
{[%clk 0:00:26.9]} 28. Rxd3 {[%clk 0:00:30.6]} 28... Bf5 {[%clk 0:00:27.1]} 29.
Re3 {[%clk 0:00:30.7]} 29... Rd8 {[%clk 0:00:24.4]} 30. Nc3 {[%clk 0:00:24.9]}
30... e4 {[%clk 0:00:19.8]} 31. f3 {[%clk 0:00:21.5]} 31... Rd3 {[%clk
0:00:09.8]} 32. fxe4 {[%clk 0:00:21.3]} 32... Qc5 {[%clk 0:00:09.8]} 33. Kf2
{[%clk 0:00:19.1]} 33... Be6 {[%clk 0:00:07.8]} 34. Ne2 {[%clk 0:00:16.5]} 34...
a5 {[%clk 0:00:04.9]} 35. Qb8+ {[%clk 0:00:15.5]} 35... Kh7 {[%clk 0:00:04.6]}
36. Qh2+ {[%clk 0:00:13.8]} 36... Kg8 {[%clk 0:00:02.9]} 37. Qb8+ {[%clk
0:00:11.5]} 37... Kh7 {[%clk 0:00:02.9]} 38. Qh2+ {[%clk 0:00:07.8]} 38... Kg8
{[%clk 0:00:03.2]} 39. Qb8+ {[%clk 0:00:08.4]} 1/2-1/2

[Event "*** Titled Tuesday Blitz"]
[Site "Chess.com"]
[Date "2021.03.09"]
[Round "4"]
[White "FormerProdigy"]
[Black "fm_magua"]
[Result "1/2-1/2"]
[WhiteElo "2843"]
[BlackElo "2587"]
[TimeControl "180+1"]
[EndTime "10:41:57 PST"]
[Termination "Game drawn by repetition"]

1. d4 {[%clk 0:03:00.9]} 1... Nf6 {[%clk 0:02:59.8]} 2. c4 {[%clk 0:03:01.1]}
2... g6 {[%clk 0:03:00]} 3. Nc3 {[%clk 0:03:00.9]} 3... Bg7 {[%clk 0:03:00.2]}
4. e4 {[%clk 0:03:01.1]} 4... d6 {[%clk 0:03:00.7]} 5. Nf3 {[%clk 0:03:01.1]}
5... O-O {[%clk 0:03:01.3]} 6. Be2 {[%clk 0:03:01.8]} 6... e5 {[%clk 0:03:01.6]}
7. O-O {[%clk 0:03:01.8]} 7... Nc6 {[%clk 0:03:01.5]} 8. d5 {[%clk 0:03:01.7]}
8... Ne7 {[%clk 0:03:01.2]} 9. Bg5 {[%clk 0:03:00.7]} 9... h6 {[%clk 0:03:00.2]}
10. Be3 {[%clk 0:02:57]} 10... Ne8 {[%clk 0:03:00.2]} 11. Nd2 {[%clk 0:02:53.4]}
11... f5 {[%clk 0:03:00.1]} 12. f3 {[%clk 0:02:53.7]} 12... f4 {[%clk
0:03:00.2]} 13. Bf2 {[%clk 0:02:53.8]} 13... g5 {[%clk 0:03:00.8]} 14. c5 {[%clk
0:02:53.5]} 14... Rf6 {[%clk 0:03:00.7]} 15. b4 {[%clk 0:02:26.2]} 15... Rg6
{[%clk 0:03:00.5]} 16. Nc4 {[%clk 0:02:06.9]} 16... h5 {[%clk 0:02:59.7]} 17.
cxd6 {[%clk 0:01:53.4]} 17... Nxd6 {[%clk 0:02:59.6]} 18. Nxd6 {[%clk
0:01:49.3]} 18... cxd6 {[%clk 0:02:59.4]} 19. Rc1 {[%clk 0:01:47.1]} 19... g4
{[%clk 0:02:59.5]} 20. Bh4 {[%clk 0:01:33]} 20... Bf6 {[%clk 0:02:58.1]} 21.
Bxf6 {[%clk 0:01:32.5]} 21... Rxf6 {[%clk 0:02:58.5]} 22. fxg4 {[%clk
0:01:32.8]} 22... hxg4 {[%clk 0:02:58.2]} 23. Bxg4 {[%clk 0:01:33.7]} 23... Rg6
{[%clk 0:02:57.5]} 24. Be6+ {[%clk 0:01:02.9]} 24... Kg7 {[%clk 0:02:40.2]} 25.
Rf2 {[%clk 0:00:53.7]} 25... Bxe6 {[%clk 0:02:23.4]} 26. dxe6 {[%clk 0:00:54.6]}
26... Rxe6 {[%clk 0:02:15]} 27. Nd5 {[%clk 0:00:48.6]} 27... Nxd5 {[%clk
0:02:06.3]} 28. Qxd5 {[%clk 0:00:49.5]} 28... Re7 {[%clk 0:01:59.4]} 29. Rd1
{[%clk 0:00:38.5]} 29... Rc8 {[%clk 0:01:45.2]} 30. g3 {[%clk 0:00:32.3]} 30...
Qb6 {[%clk 0:01:34.2]} 31. Qxd6 {[%clk 0:00:27.1]} 31... Qxd6 {[%clk 0:01:32.9]}
32. Rxd6 {[%clk 0:00:28]} 32... fxg3 {[%clk 0:01:31.7]} 33. hxg3 {[%clk
0:00:27.4]} 33... Rc4 {[%clk 0:01:31.7]} 34. a3 {[%clk 0:00:22.5]} 34... Rxe4
{[%clk 0:01:30.8]} 35. Kg2 {[%clk 0:00:22.9]} 35... Re3 {[%clk 0:01:21.9]} 36.
Rf3 {[%clk 0:00:23]} 36... Re2+ {[%clk 0:01:21.2]} 37. Rf2 {[%clk 0:00:21.6]}
37... Re3 {[%clk 0:01:21.5]} 38. Rf3 {[%clk 0:00:22]} 38... Re2+ {[%clk
0:01:22]} 39. Kf1 {[%clk 0:00:09.5]} 39... Rh2 {[%clk 0:01:16.6]} 40. Rfd3
{[%clk 0:00:06.8]} 40... e4 {[%clk 0:01:08.2]} 41. Rd7 {[%clk 0:00:06.1]} 41...
exd3 {[%clk 0:01:03.2]} 42. Rxe7+ {[%clk 0:00:06.2]} 42... Kf6 {[%clk
0:01:03.5]} 43. Rxb7 {[%clk 0:00:05.8]} 43... d2 {[%clk 0:01:03.2]} 44. Rd7
{[%clk 0:00:05.9]} 44... Kf5 {[%clk 0:00:50.3]} 45. b5 {[%clk 0:00:05.8]} 45...
Kg4 {[%clk 0:00:46]} 46. Rd3 {[%clk 0:00:05]} 46... Kf5 {[%clk 0:00:41.2]} 47.
a4 {[%clk 0:00:03.8]} 47... Ke4 {[%clk 0:00:41.4]} 48. Rd7 {[%clk 0:00:03.6]}
48... Kf3 {[%clk 0:00:35.2]} 49. Rd3+ {[%clk 0:00:03.1]} 49... Ke4 {[%clk
0:00:35.2]} 50. Rd7 {[%clk 0:00:03.2]} 50... Kf3 {[%clk 0:00:35.4]} 51. Rd3+
{[%clk 0:00:03.1]} 51... Ke4 {[%clk 0:00:35.8]} 1/2-1/2

[Event "*** Titled Tuesday Blitz"]
[Site "Chess.com"]
[Date "2021.03.09"]
[Round "4"]
[White "S-Fazulyanov"]
[Black "ZiggyStardust64"]
[Result "1-0"]
[WhiteElo "2537"]
[BlackElo "2644"]
[TimeControl "180+1"]
[EndTime "10:41:57 PST"]
[Termination "S-Fazulyanov won on time"]

1. d4 {[%clk 0:03:00.9]} 1... Nf6 {[%clk 0:02:59.5]} 2. Nf3 {[%clk 0:03:01.1]}
2... g6 {[%clk 0:03:00.1]} 3. c4 {[%clk 0:03:00.6]} 3... Bg7 {[%clk 0:03:00.6]}
4. Nc3 {[%clk 0:03:00.9]} 4... d5 {[%clk 0:03:01.1]} 5. e3 {[%clk 0:03:00.4]}
5... O-O {[%clk 0:03:01.1]} 6. b3 {[%clk 0:02:58.2]} 6... c5 {[%clk 0:03:00.3]}
7. Bb2 {[%clk 0:02:58]} 7... cxd4 {[%clk 0:03:00.2]} 8. Nxd4 {[%clk 0:02:56.5]}
8... b6 {[%clk 0:02:57.2]} 9. Be2 {[%clk 0:02:54.7]} 9... Bb7 {[%clk 0:02:57.6]}
10. O-O {[%clk 0:02:54.6]} 10... dxc4 {[%clk 0:02:57.7]} 11. Bxc4 {[%clk
0:02:53.5]} 11... Nc6 {[%clk 0:02:57.9]} 12. Nxc6 {[%clk 0:02:50.1]} 12... Bxc6
{[%clk 0:02:58.8]} 13. Qxd8 {[%clk 0:02:49.7]} 13... Rfxd8 {[%clk 0:02:59.7]}
14. Rad1 {[%clk 0:02:49.6]} 14... Ne4 {[%clk 0:02:56.2]} 15. Nxe4 {[%clk
0:02:31.2]} 15... Bxb2 {[%clk 0:02:52.2]} 16. Ng3 {[%clk 0:02:29]} 16... h5
{[%clk 0:02:33]} 17. Ne2 {[%clk 0:02:21.6]} 17... Kg7 {[%clk 0:02:29.3]} 18. f3
{[%clk 0:02:13.3]} 18... b5 {[%clk 0:02:17.4]} 19. Bd3 {[%clk 0:02:12.1]} 19...
Rac8 {[%clk 0:02:08.7]} 20. Kf2 {[%clk 0:01:54]} 20... h4 {[%clk 0:02:01.9]} 21.
Bb1 {[%clk 0:01:47.4]} 21... a5 {[%clk 0:01:44.3]} 22. Nf4 {[%clk 0:01:34.5]}
22... Ba3 {[%clk 0:01:32.8]} 23. Nd3 {[%clk 0:01:29.5]} 23... Bd5 {[%clk
0:01:15.9]} 24. Nf4 {[%clk 0:01:25.5]} 24... Bc6 {[%clk 0:01:15.8]} 25. Nd3
{[%clk 0:01:25.4]} 25... Bd6 {[%clk 0:01:11]} 26. Rc1 {[%clk 0:01:11.2]} 26...
Bxh2 {[%clk 0:01:06.2]} 27. Ke2 {[%clk 0:01:09]} 27... Bd6 {[%clk 0:00:58.8]}
28. Rfd1 {[%clk 0:01:07.3]} 28... Ba3 {[%clk 0:00:53]} 29. Rc3 {[%clk
0:01:06.7]} 29... Bxf3+ {[%clk 0:00:51.7]} 30. gxf3 {[%clk 0:01:03.8]} 30...
Rxc3 {[%clk 0:00:51.7]} 31. Rh1 {[%clk 0:01:01.5]} 31... g5 {[%clk 0:00:48.9]}
32. Rg1 {[%clk 0:00:59.9]} 32... Kf6 {[%clk 0:00:46.8]} 33. f4 {[%clk
0:00:58.5]} 33... Rg8 {[%clk 0:00:45.4]} 34. fxg5+ {[%clk 0:00:53.1]} 34... Rxg5
{[%clk 0:00:46.3]} 35. Rh1 {[%clk 0:00:53.5]} 35... Rg2+ {[%clk 0:00:41]} 36.
Kf3 {[%clk 0:00:53.5]} 36... Rd2 {[%clk 0:00:34.1]} 37. Ke4 {[%clk 0:00:52.6]}
37... e6 {[%clk 0:00:24.5]} 38. Kd4 {[%clk 0:00:44.1]} 38... b4 {[%clk
0:00:20.5]} 39. Ke4 {[%clk 0:00:42.6]} 39... Ke7 {[%clk 0:00:20.3]} 40. Kd4
{[%clk 0:00:29.7]} 40... h3 {[%clk 0:00:19.9]} 41. Rxh3 {[%clk 0:00:20.7]} 41...
Rd1 {[%clk 0:00:19.8]} 42. Rh7 {[%clk 0:00:19.9]} 1-0

[Event "*** Titled Tuesday Blitz"]
[Site "Chess.com"]
[Date "2021.03.09"]
[Round "4"]
[White "Cherone"]
[Black "urutodo"]
[Result "1-0"]
[WhiteElo "2480"]
[BlackElo "2303"]
[TimeControl "180+1"]
[EndTime "10:41:57 PST"]
[Termination "Cherone won on time"]

1. d4 {[%clk 0:03:00.9]} 1... c6 {[%clk 0:03:00.5]} 2. e4 {[%clk 0:02:59.7]}
2... d5 {[%clk 0:03:01.4]} 3. e5 {[%clk 0:02:59.9]} 3... Bf5 {[%clk 0:03:00.8]}
4. h4 {[%clk 0:03:00.1]} 4... h5 {[%clk 0:03:00.3]} 5. Bd3 {[%clk 0:03:00.1]}
5... Bxd3 {[%clk 0:02:57.6]} 6. Qxd3 {[%clk 0:03:01]} 6... e6 {[%clk 0:02:57.9]}
7. Bg5 {[%clk 0:03:00.9]} 7... Qb6 {[%clk 0:02:50.2]} 8. Nd2 {[%clk 0:03:00.4]}
8... Ne7 {[%clk 0:02:48.1]} 9. Ngf3 {[%clk 0:03:00.2]} 9... Nf5 {[%clk
0:02:45.1]} 10. O-O {[%clk 0:02:59.4]} 10... Nd7 {[%clk 0:02:41.6]} 11. Rfd1
{[%clk 0:02:53]} 11... Be7 {[%clk 0:02:41.1]} 12. Bxe7 {[%clk 0:02:44]} 12...
Nxe7 {[%clk 0:02:40.5]} 13. Nf1 {[%clk 0:02:41.9]} 13... O-O {[%clk 0:02:15.5]}
14. Ng3 {[%clk 0:02:23.9]} 14... g6 {[%clk 0:02:14.7]} 15. Ng5 {[%clk
0:02:12.6]} 15... Nf5 {[%clk 0:01:40.8]} 16. Nxf5 {[%clk 0:02:10.7]} 16... exf5
{[%clk 0:01:41.7]} 17. e6 {[%clk 0:01:58.4]} 17... fxe6 {[%clk 0:01:42.6]} 18.
Nxe6 {[%clk 0:01:58.6]} 18... Rf6 {[%clk 0:01:40.2]} 19. Nf4 {[%clk 0:01:45.4]}
19... Nf8 {[%clk 0:01:37]} 20. Qg3 {[%clk 0:01:40.3]} 20... Kh7 {[%clk 0:01:18]}
21. Re1 {[%clk 0:01:25.6]} 21... Rf7 {[%clk 0:01:09.9]} 22. Nh3 {[%clk
0:01:00.8]} 22... Kg7 {[%clk 0:01:02]} 23. Ng5 {[%clk 0:00:58.4]} 23... Rd7
{[%clk 0:01:02]} 24. Qe5+ {[%clk 0:00:52.1]} 24... Kg8 {[%clk 0:00:57]} 25. Qf6
{[%clk 0:00:44.7]} 25... Qd8 {[%clk 0:00:51.9]} 26. Qe5 {[%clk 0:00:39.1]} 26...
Rc8 {[%clk 0:00:40.9]} 27. Re3 {[%clk 0:00:38.3]} 27... Rcc7 {[%clk 0:00:40.9]}
28. Rae1 {[%clk 0:00:37]} 28... Rg7 {[%clk 0:00:40.2]} 29. Nh3 {[%clk
0:00:29.3]} 29... Nh7 {[%clk 0:00:38.6]} 30. Qg3 {[%clk 0:00:27.1]} 30... Nf6
{[%clk 0:00:36.7]} 31. f3 {[%clk 0:00:26.5]} 31... Qf8 {[%clk 0:00:28.7]} 32.
Nf4 {[%clk 0:00:24.6]} 32... Qd6 {[%clk 0:00:22.8]} 33. Qg5 {[%clk 0:00:21.4]}
33... Nh7 {[%clk 0:00:20.2]} 34. Re8+ {[%clk 0:00:18.3]} 34... Nf8 {[%clk
0:00:20.5]} 35. Ne6 {[%clk 0:00:17.4]} 35... Rge7 {[%clk 0:00:12.9]} 36. Rxf8+
{[%clk 0:00:16.2]} 36... Kh7 {[%clk 0:00:11.8]} 37. Qf6 {[%clk 0:00:14.9]} 37...
Rg7 {[%clk 0:00:04.3]} 38. Ng5+ {[%clk 0:00:14.7]} 38... Kh6 {[%clk 0:00:03.4]}
39. Rh8+ {[%clk 0:00:14.7]} 39... Rh7 {[%clk 0:00:01.9]} 40. Rxh7+ {[%clk
0:00:14]} 1-0

[Event "*** Titled Tuesday Blitz"]
[Site "Chess.com"]
[Date "2021.03.09"]
[Round "4"]
[White "Vanina1989"]
[Black "ChristopherYoo"]
[Result "0-1"]
[WhiteElo "2754"]
[BlackElo "2934"]
[TimeControl "180+1"]
[EndTime "10:41:58 PST"]
[Termination "ChristopherYoo won on time"]

1. d4 {[%clk 0:03:00.9]} 1... Nf6 {[%clk 0:02:59.4]} 2. c4 {[%clk 0:02:59.4]}
2... e6 {[%clk 0:02:59.1]} 3. Nf3 {[%clk 0:02:59.2]} 3... d5 {[%clk 0:02:58.8]}
4. Nc3 {[%clk 0:02:58.5]} 4... dxc4 {[%clk 0:02:58.3]} 5. e4 {[%clk 0:02:57.8]}
5... Bb4 {[%clk 0:02:57.9]} 6. Bxc4 {[%clk 0:02:57.7]} 6... Nxe4 {[%clk
0:02:57.8]} 7. O-O {[%clk 0:02:58]} 7... Nxc3 {[%clk 0:02:57.7]} 8. bxc3 {[%clk
0:02:57.9]} 8... Be7 {[%clk 0:02:58.3]} 9. Bf4 {[%clk 0:02:57.1]} 9... Nd7
{[%clk 0:02:57]} 10. Re1 {[%clk 0:02:55.4]} 10... O-O {[%clk 0:02:49.3]} 11. Qc2
{[%clk 0:02:45.1]} 11... b6 {[%clk 0:02:01]} 12. Rad1 {[%clk 0:02:14.3]} 12...
Nf6 {[%clk 0:01:49.6]} 13. Be5 {[%clk 0:01:52.4]} 13... Bb7 {[%clk 0:01:26.5]}
14. Ng5 {[%clk 0:01:51]} 14... g6 {[%clk 0:01:25.9]} 15. Qc1 {[%clk 0:01:19]}
15... Bd5 {[%clk 0:01:21.7]} 16. Bd3 {[%clk 0:01:17.1]} 16... Ne8 {[%clk
0:01:01.3]} 17. Ne4 {[%clk 0:01:12.6]} 17... Nd6 {[%clk 0:01:00.4]} 18. Qh6
{[%clk 0:01:06.6]} 18... Nf5 {[%clk 0:00:57.5]} 19. Qh3 {[%clk 0:01:00.4]} 19...
f6 {[%clk 0:00:56.6]} 20. Bf4 {[%clk 0:00:57.2]} 20... Qd7 {[%clk 0:00:53.6]}
21. g4 {[%clk 0:00:43.4]} 21... Nd6 {[%clk 0:00:51.1]} 22. Nxd6 {[%clk
0:00:34.1]} 22... Bxd6 {[%clk 0:00:47.7]} 23. Bh6 {[%clk 0:00:34.1]} 23... Rfe8
{[%clk 0:00:45.7]} 24. c4 {[%clk 0:00:33]} 24... Bb7 {[%clk 0:00:45.2]} 25. Bd2
{[%clk 0:00:13.9]} 25... Bf8 {[%clk 0:00:37.8]} 26. Bc3 {[%clk 0:00:13.9]} 26...
Bg7 {[%clk 0:00:34]} 27. Qg3 {[%clk 0:00:13]} 27... Rad8 {[%clk 0:00:30.4]} 28.
h4 {[%clk 0:00:12.9]} 28... f5 {[%clk 0:00:28.1]} 29. g5 {[%clk 0:00:11.6]}
29... Qc6 {[%clk 0:00:21.6]} 30. d5 {[%clk 0:00:11.5]} 30... exd5 {[%clk
0:00:21.4]} 31. Bxg7 {[%clk 0:00:11.3]} 31... dxc4 {[%clk 0:00:15.8]} 32. Rxe8+
{[%clk 0:00:10.8]} 32... Rxe8 {[%clk 0:00:14.5]} 33. Bxc4+ {[%clk 0:00:10.6]}
33... Qxc4 {[%clk 0:00:14.2]} 34. Ba1 {[%clk 0:00:10.5]} 34... Qe4 {[%clk
0:00:08.5]} 35. Qb3+ {[%clk 0:00:09.9]} 35... Re6 {[%clk 0:00:08]} 36. f3 {[%clk
0:00:09.7]} 36... Qe2 {[%clk 0:00:05.4]} 37. Rd8+ {[%clk 0:00:08.4]} 37... Kf7
{[%clk 0:00:05.8]} 38. Rd7+ {[%clk 0:00:08.2]} 38... Ke8 {[%clk 0:00:06.2]} 39.
Rxc7 {[%clk 0:00:07.4]} 39... Qe1+ {[%clk 0:00:05.4]} 0-1